fUST/lending_fUST_20260519
["ID","MTS","AMOUNT","RATE_DAILY","PERIOD"]
[422582155,1779124246000,-589.20506982,8.493e-05,2]
[422582144,1779124246000,-500.0,8.493e-05,2]
[422582153,1779124246000,-596.04,8.493e-05,2]
[422582184,1779124246000,-1223.02,8.767e-05,2]
[422582131,1779124246000,-3758.41,8.493e-05,2]
[422582127,1779124246000,-1937.75,8.493e-05,2]
[422582126,1779124246000,-2685.22,8.493e-05,2]
[422582128,1779124246000,-2253.35,8.493e-05,2]
[422582129,1779124246000,-500.0,8.493e-05,2]
[422582130,1779124246000,-911.19,8.493e-05,2]
[422582132,1779124246000,-917.27,8.493e-05,2]
[422582134,1779124246000,-6625.57,8.493e-05,2]
[422582133,1779124246000,-647.88,8.493e-05,2]
[422582135,1779124246000,-2426.46,8.493e-05,2]
[422582136,1779124246000,-500.0,8.493e-05,2]
[422582140,1779124246000,-500.0,8.493e-05,2]
[422582143,1779124246000,-2720.25,8.493e-05,2]
[422582137,1779124246000,-1842.97,8.493e-05,2]
[422582138,1779124246000,-803.41,8.493e-05,2]
[422582139,1779124246000,-500.0,8.493e-05,2]
[422582142,1779124246000,-500.0,8.493e-05,2]
[422582141,1779124246000,-500.0,8.493e-05,2]
[422582146,1779124246000,-2953.82,8.493e-05,2]
[422582145,1779124246000,-1296.79,8.493e-05,2]
[422582148,1779124246000,-307.64987505,8.493e-05,2]
[422582147,1779124246000,-500.0,8.493e-05,2]
[422582156,1779124246000,-7184.26934075,8.564e-05,2]
[422582154,1779124246000,-3616.45,8.493e-05,2]
[422582152,1779124246000,-500.0,8.493e-05,2]
[422582150,1779124246000,-6711.26,8.493e-05,2]
[422582149,1779124246000,-540.73,8.493e-05,2]
[422582182,1779124246000,-530.97,8.767e-05,2]
[422582189,1779124246000,-500.0,8.767e-05,2]
[422582188,1779124246000,-500.0,8.767e-05,2]
[422582226,1779124246000,-848.17,8.767e-05,2]
[422582219,1779124246000,-500.0,8.767e-05,2]
[422582218,1779124246000,-1356.67,8.767e-05,2]
[422582220,1779124246000,-500.0,8.767e-05,2]
[422582225,1779124246000,-500.0,8.767e-05,2]
[422582224,1779124246000,-500.0,8.767e-05,2]
[422582222,1779124246000,-500.0,8.767e-05,2]
[422582221,1779124246000,-500.0,8.767e-05,2]
[422582227,1779124246000,-330.39413022,8.767e-05,2]
[422582228,1779124246000,-500.0,8.767e-05,2]
[422582230,1779124246000,-500.0,8.767e-05,2]
[422582229,1779124246000,-500.0,8.767e-05,2]
[422582231,1779124246000,-500.0,8.767e-05,2]
[422582232,1779124246000,-1069.52,8.767e-05,2]
[422582234,1779124246000,-500.0,8.767e-05,2]
[422582233,1779124246000,-500.0,8.767e-05,2]
[422582235,1779124246000,-1402.51,8.767e-05,2]
[422582238,1779124246000,-500.0,8.767e-05,2]
[422582236,1779124246000,-560.89,8.767e-05,2]
[422582239,1779124246000,-500.0,8.767e-05,2]
[422582237,1779124246000,-503.14,8.767e-05,2]
[422582240,1779124246000,-500.0,8.767e-05,2]
[422582242,1779124246000,-500.0,8.767e-05,2]
[422582243,1779124246000,-500.0,8.767e-05,2]
[422582241,1779124246000,-500.0,8.767e-05,2]
[422582245,1779124246000,-500.0,8.767e-05,2]
[422582185,1779124246000,-500.0,8.767e-05,2]
[422582223,1779124246000,-500.0,8.767e-05,2]
[422582216,1779124246000,-478.97076782,8.767e-05,2]
[422582244,1779124246000,-500.0,8.767e-05,2]
[422582213,1779124246000,-500.0,8.767e-05,2]
[422582187,1779124246000,-500.0,8.767e-05,2]
[422582190,1779124246000,-1878.25,8.767e-05,2]
[422582191,1779124246000,-500.0,8.767e-05,2]
[422582186,1779124246000,-688.59,8.767e-05,2]
[422582192,1779124246000,-500.0,8.767e-05,2]
[422582193,1779124246000,-500.0,8.767e-05,2]
[422582195,1779124246000,-560.35,8.767e-05,2]
[422582217,1779124246000,-500.0,8.767e-05,2]
[422582205,1779124246000,-1193.77,8.767e-05,2]
[422582194,1779124246000,-500.0,8.767e-05,2]
[422582196,1779124246000,-500.0,8.767e-05,2]
[422582198,1779124246000,-1096.45,8.767e-05,2]
[422582197,1779124246000,-559.21,8.767e-05,2]
[422582206,1779124246000,-618.89,8.767e-05,2]
[422582203,1779124246000,-756.79,8.767e-05,2]
[422582199,1779124246000,-500.0,8.767e-05,2]
[422582210,1779124246000,-2070.32,8.767e-05,2]
[422582209,1779124246000,-715.12,8.767e-05,2]
[422582208,1779124246000,-500.0,8.767e-05,2]
[422582215,1779124246000,-500.0,8.767e-05,2]
[422582211,1779124246000,-500.0,8.767e-05,2]
[422582214,1779124246000,-573.35,8.767e-05,2]
[422582212,1779124246000,-500.0,8.767e-05,2]
[422582204,1779124246000,-500.0,8.767e-05,2]
[422582202,1779124246000,-500.0,8.767e-05,2]
[422582201,1779124246000,-500.0,8.767e-05,2]
[422582200,1779124246000,-500.0,8.767e-05,2]
[422582207,1779124246000,-1005.75,8.767e-05,2]
[422582291,1779124247000,-5090.75,8.767e-05,2]
[422582288,1779124247000,-1008.07,8.767e-05,2]
[422582290,1779124247000,-589.74,8.767e-05,2]
[422582284,1779124247000,-2412.89,8.767e-05,2]
[422582283,1779124247000,-500.0,8.767e-05,2]
[422582280,1779124247000,-5699.56,8.767e-05,2]
[422582282,1779124247000,-500.0,8.767e-05,2]
[422582274,1779124247000,-8033.85,8.767e-05,2]
[422582272,1779124247000,-500.0,8.767e-05,2]
[422582277,1779124247000,-4742.09,8.767e-05,2]
[422582286,1779124247000,-500.0,8.767e-05,2]
[422582287,1779124247000,-671.33,8.767e-05,2]
[422582306,1779124247000,-500.0,8.767e-05,2]
[422582285,1779124247000,-500.0,8.767e-05,2]
[422582289,1779124247000,-1345.41,8.767e-05,2]
[422582292,1779124247000,-1331.45,8.767e-05,2]
[422582304,1779124247000,-581.63,8.767e-05,2]
[422582294,1779124247000,-40601.57,8.767e-05,2]
[422582296,1779124247000,-500.0,8.767e-05,2]
[422582299,1779124247000,-3696.97,8.767e-05,2]
[422582297,1779124247000,-575.1,8.767e-05,2]
[422582303,1779124247000,-500.0,8.767e-05,2]
[422582305,1779124247000,-2763.7,8.767e-05,2]
[422582293,1779124247000,-500.0,8.767e-05,2]
[422582302,1779124247000,-500.0,8.767e-05,2]
[422582273,1779124247000,-500.0,8.767e-05,2]
[422582281,1779124247000,-2153.93,8.767e-05,2]
[422582276,1779124247000,-1990.89,8.767e-05,2]
[422582264,1779124247000,-821.32,8.767e-05,2]
[422582269,1779124247000,-2716.83,8.767e-05,2]
[422582298,1779124247000,-1848.97,8.767e-05,2]
[422582250,1779124247000,-175.13388177,8.767e-05,2]
[422582252,1779124247000,-2757.05,8.767e-05,2]
[422582253,1779124247000,-500.0,8.767e-05,2]
[422582251,1779124247000,-1295.07,8.767e-05,2]
[422582246,1779124247000,-665.64,8.767e-05,2]
[422582247,1779124247000,-500.0,8.767e-05,2]
[422582248,1779124247000,-874.04,8.767e-05,2]
[422582249,1779124247000,-500.0,8.767e-05,2]
[422582254,1779124247000,-6473.26,8.767e-05,2]
[422582256,1779124247000,-2014.72,8.767e-05,2]
[422582260,1779124247000,-500.0,8.767e-05,2]
[422582270,1779124247000,-500.0,8.767e-05,2]
[422582255,1779124247000,-2250.02,8.767e-05,2]
[422582261,1779124247000,-500.0,8.767e-05,2]
[422582259,1779124247000,-1308.39,8.767e-05,2]
[422582258,1779124247000,-621.3117,8.767e-05,2]
[422582265,1779124247000,-1165.22,8.767e-05,2]
[422582257,1779124247000,-500.0,8.767e-05,2]
[422582263,1779124247000,-728.26,8.767e-05,2]
[422582268,1779124247000,-2451.12,8.767e-05,2]
[422582279,1779124247000,-856.96,8.767e-05,2]
[422582278,1779124247000,-548.98,8.767e-05,2]
[422582267,1779124247000,-500.0,8.767e-05,2]
[422582271,1779124247000,-2351.38,8.767e-05,2]
[422582275,1779124247000,-500.0,8.767e-05,2]
[422582262,1779124247000,-500.0,8.767e-05,2]
[422582300,1779124247000,-500.0,8.767e-05,2]
[422582266,1779124247000,-2606.55,8.767e-05,2]
[422582295,1779124247000,-500.0,8.767e-05,2]
[422582339,1779124247000,-185.0,8.783e-05,2]
[422582349,1779124247000,-500.0,9.041e-05,2]
[422582338,1779124247000,-1426.748,8.783e-05,2]
[422582340,1779124247000,-9221.65895468,8.821e-05,2]
[422582344,1779124247000,-571.75,9.041e-05,2]
[422582342,1779124247000,-2521.1067,9.041e-05,2]
[422582341,1779124247000,-500.0,9.012e-05,2]
[422582345,1779124247000,-500.0,9.041e-05,2]
[422582343,1779124247000,-500.0,9.041e-05,2]
[422582348,1779124247000,-500.0,9.041e-05,2]
[422582347,1779124247000,-500.0,9.041e-05,2]
[422582346,1779124247000,-500.0,9.041e-05,2]
[422582351,1779124247000,-500.0,9.041e-05,2]
[422582352,1779124247000,-816.06,9.041e-05,2]
[422582354,1779124247000,-500.0,9.041e-05,2]
[422582361,1779124247000,-500.0,9.041e-05,2]
[422582350,1779124247000,-719.67,9.041e-05,2]
[422582353,1779124247000,-609.22,9.041e-05,2]
[422582355,1779124247000,-500.0,9.041e-05,2]
[422582357,1779124247000,-500.0,9.041e-05,2]
[422582358,1779124247000,-500.0,9.041e-05,2]
[422582356,1779124247000,-2161.68,9.041e-05,2]
[422582360,1779124247000,-500.0,9.041e-05,2]
[422582359,1779124247000,-500.0,9.041e-05,2]
[422582363,1779124247000,-530.97,9.041e-05,2]
[422582364,1779124247000,-500.0,9.041e-05,2]
[422582301,1779124247000,-8321.21,8.767e-05,2]
[422582336,1779124247000,-500.0,8.767e-05,2]
[422582337,1779124247000,-3616.45,8.767e-05,2]
[422582362,1779124247000,-500.0,9.041e-05,2]
[422582334,1779124247000,-6711.26,8.767e-05,2]
[422582335,1779124247000,-500.0,8.767e-05,2]
[422582308,1779124247000,-500.0,8.767e-05,2]
[422582318,1779124247000,-647.88,8.767e-05,2]
[422582310,1779124247000,-1788.73,8.767e-05,2]
[422582312,1779124247000,-1937.75,8.767e-05,2]
[422582307,1779124247000,-500.0,8.767e-05,2]
[422582319,1779124247000,-6625.57,8.767e-05,2]
[422582320,1779124247000,-2426.46,8.767e-05,2]
[422582313,1779124247000,-2253.35,8.767e-05,2]
[422582311,1779124247000,-2685.22,8.767e-05,2]
[422582314,1779124247000,-500.0,8.767e-05,2]
[422582316,1779124247000,-3758.41,8.767e-05,2]
[422582317,1779124247000,-917.27,8.767e-05,2]
[422582315,1779124247000,-911.19,8.767e-05,2]
[422582309,1779124247000,-1049.64,8.767e-05,2]
[422582322,1779124247000,-1842.97,8.767e-05,2]
[422582329,1779124247000,-500.0,8.767e-05,2]
[422582328,1779124247000,-2720.25,8.767e-05,2]
[422582327,1779124247000,-500.0,8.767e-05,2]
[422582324,1779124247000,-500.0,8.767e-05,2]
[422582325,1779124247000,-500.0,8.767e-05,2]
[422582326,1779124247000,-500.0,8.767e-05,2]
[422582333,1779124247000,-540.73,8.767e-05,2]
[422582331,1779124247000,-2953.82,8.767e-05,2]
[422582332,1779124247000,-500.0,8.767e-05,2]
[422582323,1779124247000,-803.41,8.767e-05,2]
[422582321,1779124247000,-500.0,8.767e-05,2]
[422582330,1779124247000,-1296.79,8.767e-05,2]
[422582426,1779124248000,-1402.51,9.041e-05,2]
[422582422,1779124248000,-500.0,9.041e-05,2]
[422582421,1779124248000,-500.0,9.041e-05,2]
[422582419,1779124248000,-500.0,9.041e-05,2]
[422582418,1779124248000,-848.17,9.041e-05,2]
[422582417,1779124248000,-500.0,9.041e-05,2]
[422582414,1779124248000,-500.0,9.041e-05,2]
[422582415,1779124248000,-500.0,9.041e-05,2]
[422582412,1779124248000,-500.0,9.041e-05,2]
[422582398,1779124248000,-573.35,9.041e-05,2]
[422582410,1779124248000,-500.0,9.041e-05,2]
[422582408,1779124248000,-500.0,9.041e-05,2]
[422582420,1779124248000,-500.0,9.041e-05,2]
[422582424,1779124248000,-500.0,9.041e-05,2]
[422582435,1779124248000,-500.0,9.041e-05,2]
[422582425,1779124248000,-500.0,9.041e-05,2]
[422582429,1779124248000,-434.77237359,9.041e-05,2]
[422582427,1779124248000,-560.89,9.041e-05,2]
[422582430,1779124248000,-500.0,9.041e-05,2]
[422582431,1779124248000,-500.0,9.041e-05,2]
[422582432,1779124248000,-500.0,9.041e-05,2]
[422582439,1779124248000,-500.0,9.041e-05,2]
[422582433,1779124248000,-500.0,9.041e-05,2]
[422582437,1779124248000,-500.0,9.041e-05,2]
[422582438,1779124248000,-874.04,9.041e-05,2]
[422582434,1779124248000,-156.57226069,9.041e-05,2]
[422582440,1779124248000,-1295.07,9.041e-05,2]
[422582436,1779124248000,-665.64,9.041e-05,2]
[422582406,1779124248000,-562.47896997,9.041e-05,2]
[422582423,1779124248000,-1069.52,9.041e-05,2]
[422582392,1779124248000,-500.0,9.041e-05,2]
[422582366,1779124248000,-500.0,9.041e-05,2]
[422582394,1779124248000,-500.0,9.041e-05,2]
[422582365,1779124248000,-1223.02,9.041e-05,2]
[422582369,1779124248000,-500.0,9.041e-05,2]
[422582453,1779124248000,-821.32,9.041e-05,2]
[422582374,1779124248000,-356.03965921,9.041e-05,2]
[422582367,1779124248000,-688.59,9.041e-05,2]
[422582368,1779124248000,-500.0,9.041e-05,2]
[422582373,1779124248000,-500.0,9.041e-05,2]
[422582370,1779124248000,-500.0,9.041e-05,2]
[422582371,1779124248000,-1878.25,9.041e-05,2]
[422582372,1779124248000,-500.0,9.041e-05,2]
[422582375,1779124248000,-500.0,9.041e-05,2]
[422582386,1779124248000,-1193.77,9.041e-05,2]
[422582388,1779124248000,-1005.75,9.041e-05,2]
[422582376,1779124248000,-560.35,9.041e-05,2]
[422582404,1779124248000,-1356.67,9.041e-05,2]
[422582387,1779124248000,-618.89,9.041e-05,2]
[422582385,1779124248000,-500.0,9.041e-05,2]
[422582383,1779124248000,-507.21703802,9.041e-05,2]
[422582378,1779124248000,-559.21,9.041e-05,2]
[422582377,1779124248000,-500.0,9.041e-05,2]
[422582380,1779124248000,-500.0,9.041e-05,2]
[422582381,1779124248000,-500.0,9.041e-05,2]
[422582379,1779124248000,-1096.45,9.041e-05,2]
[422582384,1779124248000,-756.79,9.041e-05,2]
[422582389,1779124248000,-500.0,9.041e-05,2]
[422582390,1779124248000,-715.12,9.041e-05,2]
[422582402,1779124248000,-500.0,9.041e-05,2]
[422582400,1779124248000,-500.0,9.041e-05,2]
[422582396,1779124248000,-500.0,9.041e-05,2]
[422582391,1779124248000,-2070.32,9.041e-05,2]
[422582382,1779124248000,-500.0,9.041e-05,2]
[422582443,1779124248000,-6473.26,9.041e-05,2]
[422582428,1779124248000,-503.14,9.041e-05,2]
[422582442,1779124248000,-500.0,9.041e-05,2]
[422582473,1779124248000,-2412.89,9.041e-05,2]
[422582475,1779124248000,-426.21555803,9.041e-05,2]
[422582492,1779124248000,-581.63,9.041e-05,2]
[422582482,1779124248000,-554.34416434,9.041e-05,2]
[422582486,1779124248000,-1848.97,9.041e-05,2]
[422582485,1779124248000,-575.1,9.041e-05,2]
[422582481,1779124248000,-1331.45,9.041e-05,2]
[422582493,1779124248000,-2763.7,9.041e-05,2]
[422582483,1779124248000,-40601.57,9.041e-05,2]
[422582487,1779124248000,-3696.97,9.041e-05,2]
[422582488,1779124248000,-500.0,9.041e-05,2]
[422582484,1779124248000,-500.0,9.041e-05,2]
[422582494,1779124248000,-500.0,9.041e-05,2]
[422582490,1779124248000,-500.0,9.041e-05,2]
[422582491,1779124248000,-500.0,9.041e-05,2]
[422582489,1779124248000,-8321.21,9.041e-05,2]
[422582495,1779124248000,-500.0,9.041e-05,2]
[422582441,1779124248000,-2757.05,9.041e-05,2]
[422582504,1779124248000,-3758.41,9.041e-05,2]
[422582502,1779124248000,-500.0,9.041e-05,2]
[422582498,1779124248000,-1788.73,9.041e-05,2]
[422582506,1779124248000,-647.88,9.041e-05,2]
[422582496,1779124248000,-399.59969229,9.041e-05,2]
[422582479,1779124248000,-589.74,9.041e-05,2]
[422582503,1779124248000,-911.19,9.041e-05,2]
[422582497,1779124248000,-1049.64,9.041e-05,2]
[422582500,1779124248000,-1937.75,9.041e-05,2]
[422582508,1779124248000,-2426.46,9.041e-05,2]
[422582501,1779124248000,-2253.35,9.041e-05,2]
[422582505,1779124248000,-917.27,9.041e-05,2]
[422582499,1779124248000,-2685.22,9.041e-05,2]
[422582507,1779124248000,-6625.57,9.041e-05,2]
[422582472,1779124248000,-500.0,9.041e-05,2]
[422582509,1779124248000,-500.0,9.041e-05,2]
[422582480,1779124248000,-5090.75,9.041e-05,2]
[422582474,1779124248000,-500.0,9.041e-05,2]
[422582444,1779124248000,-2250.02,9.041e-05,2]
[422582449,1779124248000,-500.0,9.041e-05,2]
[422582445,1779124248000,-2014.72,9.041e-05,2]
[422582448,1779124248000,-1308.39,9.041e-05,2]
[422582451,1779124248000,-500.0,9.041e-05,2]
[422582446,1779124248000,-500.0,9.041e-05,2]
[422582447,1779124248000,-621.3117,9.041e-05,2]
[422582450,1779124248000,-500.0,9.041e-05,2]
[422582454,1779124248000,-1165.22,9.041e-05,2]
[422582466,1779124248000,-4742.09,9.041e-05,2]
[422582455,1779124248000,-2606.55,9.041e-05,2]
[422582458,1779124248000,-2716.83,9.041e-05,2]
[422582456,1779124248000,-500.0,9.041e-05,2]
[422582457,1779124248000,-2451.12,9.041e-05,2]
[422582452,1779124248000,-728.26,9.041e-05,2]
[422582460,1779124248000,-2351.38,9.041e-05,2]
[422582465,1779124248000,-1990.89,9.041e-05,2]
[422582478,1779124248000,-1345.41,9.041e-05,2]
[422582471,1779124248000,-500.0,9.041e-05,2]
[422582477,1779124248000,-1008.07,9.041e-05,2]
[422582476,1779124248000,-671.33,9.041e-05,2]
[422582469,1779124248000,-5699.56,9.041e-05,2]
[422582470,1779124248000,-2153.93,9.041e-05,2]
[422582467,1779124248000,-548.98,9.041e-05,2]
[422582464,1779124248000,-500.0,9.041e-05,2]
[422582462,1779124248000,-500.0,9.041e-05,2]
[422582461,1779124248000,-500.0,9.041e-05,2]
[422582459,1779124248000,-500.0,9.041e-05,2]
[422582463,1779124248000,-8033.85,9.041e-05,2]
[422582468,1779124248000,-856.96,9.041e-05,2]
[422582554,1779124249000,-500.0,9.315e-05,2]
[422582556,1779124249000,-500.0,9.315e-05,2]
[422582560,1779124249000,-559.21,9.315e-05,2]
[422582558,1779124249000,-560.35,9.315e-05,2]
[422582552,1779124249000,-688.59,9.315e-05,2]
[422582544,1779124249000,-500.0,9.315e-05,2]
[422582550,1779124249000,-1223.02,9.315e-05,2]
[422582551,1779124249000,-500.0,9.315e-05,2]
[422582549,1779124249000,-500.0,9.315e-05,2]
[422582540,1779124249000,-500.0,9.315e-05,2]
[422582543,1779124249000,-500.0,9.315e-05,2]
[422582541,1779124249000,-500.0,9.315e-05,2]
[422582559,1779124249000,-500.0,9.315e-05,2]
[422582553,1779124249000,-500.0,9.315e-05,2]
[422582564,1779124249000,-756.79,9.315e-05,2]
[422582555,1779124249000,-1878.25,9.315e-05,2]
[422582571,1779124249000,-2070.32,9.315e-05,2]
[422582545,1779124249000,-500.0,9.315e-05,2]
[422582568,1779124249000,-1005.75,9.315e-05,2]
[422582569,1779124249000,-500.0,9.315e-05,2]
[422582567,1779124249000,-618.89,9.315e-05,2]
[422582570,1779124249000,-715.12,9.315e-05,2]
[422582557,1779124249000,-500.0,9.315e-05,2]
[422582573,1779124249000,-500.0,9.315e-05,2]
[422582572,1779124249000,-500.0,9.315e-05,2]
[422582563,1779124249000,-500.0,9.315e-05,2]
[422582574,1779124249000,-500.0,9.315e-05,2]
[422582562,1779124249000,-500.0,9.315e-05,2]
[422582565,1779124249000,-500.0,9.315e-05,2]
[422582561,1779124249000,-1096.45,9.315e-05,2]
[422582566,1779124249000,-1193.77,9.315e-05,2]
[422582542,1779124249000,-2161.68,9.315e-05,2]
[422582525,1779124249000,-3616.45,9.041e-05,2]
[422582535,1779124249000,-500.0,9.315e-05,2]
[422582575,1779124249000,-573.35,9.315e-05,2]
[422582510,1779124249000,-1842.97,9.041e-05,2]
[422582521,1779124249000,-540.73,9.041e-05,2]
[422582515,1779124249000,-500.0,9.041e-05,2]
[422582517,1779124249000,-500.0,9.041e-05,2]
[422582513,1779124249000,-500.0,9.041e-05,2]
[422582511,1779124249000,-803.41,9.041e-05,2]
[422582516,1779124249000,-2720.25,9.041e-05,2]
[422582519,1779124249000,-2953.82,9.041e-05,2]
[422582512,1779124249000,-500.0,9.041e-05,2]
[422582514,1779124249000,-241.0408632,9.041e-05,2]
[422582518,1779124249000,-1296.79,9.041e-05,2]
[422582524,1779124249000,-500.0,9.041e-05,2]
[422582522,1779124249000,-6711.26,9.041e-05,2]
[422582539,1779124249000,-609.22,9.315e-05,2]
[422582523,1779124249000,-500.0,9.041e-05,2]
[422582526,1779124249000,-9236.35567107,9.075e-05,2]
[422582534,1779124249000,-500.0,9.315e-05,2]
[422582527,1779124249000,-396.0,9.2e-05,2]
[422582532,1779124249000,-500.0,9.315e-05,2]
[422582529,1779124249000,-500.0,9.315e-05,2]
[422582528,1779124249000,-2521.1067,9.315e-05,2]
[422582530,1779124249000,-571.75,9.315e-05,2]
[422582531,1779124249000,-500.0,9.315e-05,2]
[422582536,1779124249000,-719.67,9.315e-05,2]
[422582546,1779124249000,-500.0,9.315e-05,2]
[422582537,1779124249000,-500.0,9.315e-05,2]
[422582538,1779124249000,-816.06,9.315e-05,2]
[422582547,1779124249000,-500.0,9.315e-05,2]
[422582548,1779124249000,-530.97,9.315e-05,2]
[422582533,1779124249000,-500.0,9.315e-05,2]
[422582576,1779124249000,-500.0,9.315e-05,2]
[422582520,1779124249000,-500.0,9.041e-05,2]
[422582582,1779124249000,-500.0,9.315e-05,2]
[422582608,1779124249000,-2250.02,9.315e-05,2]
[422582609,1779124249000,-168.2665,9.315e-05,2]
[422582603,1779124249000,-500.0,9.315e-05,2]
[422582617,1779124249000,-728.26,9.315e-05,2]
[422582620,1779124249000,-2606.55,9.315e-05,2]
[422582619,1779124249000,-1165.22,9.315e-05,2]
[422582622,1779124249000,-2451.12,9.315e-05,2]
[422582623,1779124249000,-2716.83,9.315e-05,2]
[422582630,1779124249000,-1990.89,9.315e-05,2]
[422582629,1779124249000,-500.0,9.315e-05,2]
[422582621,1779124249000,-500.0,9.315e-05,2]
[422582618,1779124249000,-821.32,9.315e-05,2]
[422582626,1779124249000,-500.0,9.315e-05,2]
[422582625,1779124249000,-2351.38,9.315e-05,2]
[422582627,1779124249000,-500.0,9.315e-05,2]
[422582628,1779124249000,-8033.85,9.315e-05,2]
[422582624,1779124249000,-500.0,9.315e-05,2]
[422582586,1779124249000,-500.0,9.315e-05,2]
[422582636,1779124249000,-500.0,9.315e-05,2]
[422582641,1779124249000,-1008.07,9.315e-05,2]
[422582639,1779124249000,-500.0,9.315e-05,2]
[422582635,1779124249000,-2153.93,9.315e-05,2]
[422582637,1779124249000,-500.0,9.315e-05,2]
[422582616,1779124249000,-500.0,9.315e-05,2]
[422582638,1779124249000,-2412.89,9.315e-05,2]
[422582644,1779124249000,-5090.75,9.315e-05,2]
[422582634,1779124249000,-5699.56,9.315e-05,2]
[422582643,1779124249000,-589.74,9.315e-05,2]
[422582642,1779124249000,-1345.41,9.315e-05,2]
[422582632,1779124249000,-548.98,9.315e-05,2]
[422582631,1779124249000,-4742.09,9.315e-05,2]
[422582633,1779124249000,-856.96,9.315e-05,2]
[422582613,1779124249000,-1308.39,9.315e-05,2]
[422582640,1779124249000,-671.33,9.315e-05,2]
[422582612,1779124249000,-621.3117,9.315e-05,2]
[422582607,1779124249000,-6473.26,9.315e-05,2]
[422582579,1779124249000,-500.0,9.315e-05,2]
[422582577,1779124249000,-1356.67,9.315e-05,2]
[422582587,1779124249000,-500.0,9.315e-05,2]
[422582588,1779124249000,-500.0,9.315e-05,2]
[422582580,1779124249000,-194.2145982,9.315e-05,2]
[422582583,1779124249000,-500.0,9.315e-05,2]
[422582581,1779124249000,-500.0,9.315e-05,2]
[422582584,1779124249000,-848.17,9.315e-05,2]
[422582585,1779124249000,-500.0,9.315e-05,2]
[422582591,1779124249000,-500.0,9.315e-05,2]
[422582589,1779124249000,-1069.52,9.315e-05,2]
[422582592,1779124249000,-1402.51,9.315e-05,2]
[422582599,1779124249000,-500.0,9.315e-05,2]
[422582593,1779124249000,-560.89,9.315e-05,2]
[422582578,1779124249000,-500.0,9.315e-05,2]
[422582594,1779124249000,-503.14,9.315e-05,2]
[422582600,1779124249000,-665.64,9.315e-05,2]
[422582610,1779124249000,-2014.72,9.315e-05,2]
[422582606,1779124249000,-500.0,9.315e-05,2]
[422582615,1779124249000,-500.0,9.315e-05,2]
[422582614,1779124249000,-500.0,9.315e-05,2]
[422582604,1779124249000,-1295.07,9.315e-05,2]
[422582611,1779124249000,-500.0,9.315e-05,2]
[422582602,1779124249000,-874.04,9.315e-05,2]
[422582595,1779124249000,-500.0,9.315e-05,2]
[422582596,1779124249000,-500.0,9.315e-05,2]
[422582597,1779124249000,-500.0,9.315e-05,2]
[422582605,1779124249000,-2757.05,9.315e-05,2]
[422582590,1779124249000,-500.0,9.315e-05,2]
[422582598,1779124249000,-500.0,9.315e-05,2]
[422582601,1779124249000,-500.0,9.315e-05,2]
[422582679,1779124250000,-1296.79,9.315e-05,2]
[422582686,1779124250000,-3616.45,9.315e-05,2]
[422582676,1779124250000,-500.0,9.315e-05,2]
[422582683,1779124250000,-6711.26,9.315e-05,2]
[422582682,1779124250000,-540.73,9.315e-05,2]
[422582678,1779124250000,-500.0,9.315e-05,2]
[422582688,1779124250000,-426.0460037,9.343e-05,2]
[422582677,1779124250000,-2720.25,9.315e-05,2]
[422582687,1779124250000,-10262.51661045,9.33e-05,2]
[422582681,1779124250000,-500.0,9.315e-05,2]
[422582684,1779124250000,-500.0,9.315e-05,2]
[422582685,1779124250000,-500.0,9.315e-05,2]
[422582680,1779124250000,-2953.82,9.315e-05,2]
[422582694,1779124250000,-176.14032332,9.56e-05,2]
[422582701,1779124250000,-500.0,9.589e-05,2]
[422582700,1779124250000,-500.0,9.589e-05,2]
[422582692,1779124250000,-172.36877159,9.56e-05,2]
[422582693,1779124250000,-176.69706827,9.56e-05,2]
[422582689,1779124250000,-464.03930375,9.368e-05,2]
[422582696,1779124250000,-2521.1067,9.589e-05,2]